bitfinex/quotes_ETHUSD_20250603
["timestamp","ask_amount","ask_price","bid_price","bid_amount"]
[1748966770135,8.54584,2619.4,2618.8,3.81842727]
[1748966770331,8.54584,2619.4,2618.9,3.81836949]
[1748966770531,8.54584,2619.4,2619.1,3.81803515]
[1748966770532,1.2034,2619.4,2619.1,3.81803515]
[1748966770732,6.409,2619.4,2619.2,3.81789318]
[1748966771073,9.6917641,2619.7,2619.3,3.8177402]
[1748966771270,9.6917641,2619.7,2619.3,3.81773211]
[1748966771682,2.0731641,2619.7,2619.6,3.81737669]
[1748966771975,8.4821641,2619.7,2619.5,3.81751927]
[1748966772174,2.0731641,2619.7,2619.5,3.81751927]
[1748966772671,2.0731641,2619.7,2619.1,3.81803258]
[1748966772874,1.2096,2619.6,2618.9,3.81827094]
[1748966773197,7.6186,2619.6,2618.8,0.0287]
[1748966773342,0.49549805,2619.5,2618.7,3.81855577]
[1748966773536,0.49549805,2619.5,2618.5,0.0287]
[1748966773788,0.49549805,2619.5,2619.0,3.81825042]
[1748966773972,0.35123736,2619.4,2619.0,3.81825042]
[1748966774299,0.49549805,2619.5,2619.0,3.81825042]
[1748966774602,0.49549805,2619.5,2618.7,8.17917687]
[1748966774603,0.49549805,2619.5,2618.7,6.81801523]
[1748966774804,0.49549805,2619.5,2618.7,5.86365745]
[1748966775016,1.2469,2619.4,2618.2,0.0287]
[1748966775206,1.3081,2619.2,2618.2,0.0287]
[1748966775356,1.722,2619.1,2618.1,8.19917687]
[1748966775714,6.409,2619.0,2618.7,3.81865718]
[1748966775875,7.35291,2619.0,2618.3,3.81926169]
[1748966776196,7.35291,2619.0,2618.1,8.19917687]
[1748966776197,7.35291,2619.0,2618.2,8.0]
[1748966776359,1.3233,2618.9,2618.4,3.81905911]
[1748966776564,2.230791,2618.9,2618.5,3.8189115]
[1748966776760,2.230791,2618.9,2618.6,3.81882589]
[1748966777100,1.3233,2618.9,2618.8,3.81854284]
[1748966777305,3.0283,2619.3,2618.4,0.0287]
[1748966777505,6.409,2619.1,2618.3,4.66]
[1748966777799,7.08502056,2619.0,2618.7,3.81867108]
[1748966778217,7.08502056,2619.0,2618.6,3.81875679]
[1748966778365,7.08502056,2619.0,2618.3,4.66]
[1748966778366,1.2574,2618.9,2618.3,4.66]
[1748966778703,1.2574,2618.9,2618.4,3.81902772]
[1748966779001,2.26364206,2618.9,2618.4,3.81902772]
[1748966779321,2.26364206,2618.9,2618.3,4.66]
[1748966779458,0.35108596,2618.8,2618.3,4.66]
[1748966779663,2.26364206,2618.9,2618.4,4.66]
[1748966779894,2.26364206,2618.9,2618.5,3.81885377]
[1748966780097,6.409,2618.8,2618.6,3.81876108]
[1748966780761,6.409,2618.8,2618.4,8.47910667]
[1748966780968,6.409,2618.8,2618.4,4.66]
[1748966781800,1.2574,2618.9,2618.4,4.66]
[1748966782003,6.409,2618.8,2618.4,8.47905025]
[1748966782198,6.409,2618.8,2618.4,4.66]
[1748966782398,6.409,2618.8,2618.5,8.0]
[1748966783580,2.9774,2618.9,2618.5,2.85510974]
[1748966783805,9.3864,2618.9,2618.5,6.67407917]
[1748966784211,9.3864,2618.9,2618.5,2.85510974]
[1748966784808,1.2676,2618.8,2618.1,0.02]
[1748966785643,1.62560086,2618.8,2618.1,0.02]
[1748966785853,0.35093051,2618.7,2618.1,0.02]
[1748966786016,1.28,2618.7,2618.1,0.02]
[1748966786417,1.2985,2618.5,2618.1,0.02]
[1748966786795,6.409,2618.4,2618.1,0.02]
[1748966786998,1.2985,2618.5,2618.1,0.02]
[1748966787747,1.1859,2618.3,2618.1,0.02]
[1748966788759,0.35084158,2618.2,2618.1,0.02]
[1748966788924,0.79457416,2618.2,2618.1,0.02]
[1748966789126,2.56507416,2618.2,2618.1,0.02]
[1748966789321,2.56507416,2618.2,2617.3,11.82067844]
[1748966789525,2.56507416,2618.2,2617.1,0.02]
[1748966789526,1.2226,2618.0,2617.1,0.02]
[1748966789719,1.721,2617.9,2617.2,3.82081019]
[1748966789937,6.409,2617.8,2617.2,3.82081019]
[1748966790119,6.409,2617.8,2617.1,3.84094684]
[1748966790551,6.409,2617.8,2617.2,3.82087023]
[1748966790757,7.34426,2617.8,2617.2,3.82087023]
[1748966791312,1.3016,2617.6,2617.1,0.02]
[1748966792805,1.3016,2617.6,2616.9,2.16726913]
[1748966793004,0.55,2617.5,2616.9,2.16726913]
[1748966793202,1.2765,2617.4,2616.9,2.16726913]
[1748966793420,0.35079757,2617.3,2616.9,2.16726913]
[1748966793622,6.41,2617.2,2616.9,2.16726913]
[1748966794045,1.2765,2617.1,2616.9,2.16726913]
[1748966794350,1.2765,2617.1,2616.1,0.02]
[1748966794351,0.55,2616.5,2616.1,0.02]
[1748966794547,1.2104,2616.6,2616.1,0.02]
[1748966794548,0.55,2616.3,2616.1,0.02]
[1748966794704,1.2104,2616.2,2616.1,0.02]
[1748966794909,1.2104,2616.7,2616.1,0.02]
[1748966795119,1.2104,2616.7,2616.1,0.40426046]
[1748966795325,1.2104,2616.7,2616.1,0.02]
[1748966795520,0.38208344,2617.9,2616.6,9.71518999]
[1748966795779,0.02,2618.9,2617.8,9.71518999]
[1748966795978,0.02,2618.9,2617.9,0.971519]
[1748966796256,0.02,2618.9,2617.9,8.971519]
[1748966796406,0.02,2618.9,2618.3,3.81920851]
[1748966796606,0.02,2618.9,2618.1,0.38537322]
[1748966796857,0.02,2618.9,2618.5,3.81897168]
[1748966797158,0.02,2618.9,2618.2,3.81941792]
[1748966797159,0.02,2618.9,2618.8,3.81854284]
[1748966797336,0.37099513,2618.9,2618.6,5.10398035]
[1748966797541,0.02,2618.9,2618.7,3.81867951]
[1748966797740,0.02,2618.9,2618.5,3.81897666]
[1748966797946,0.02,2618.9,2618.8,3.81854284]
[1748966798712,0.02,2618.9,2618.8,13.29661044]
[1748966798946,0.02,2618.9,2618.8,22.06033267]
[1748966799448,0.02,2618.9,2618.8,22.36980307]
[1748966800784,0.3512485,2619.4,2618.8,31.62460307]
[1748966800967,0.3512485,2619.4,2619.3,21.54035191]
[1748966801150,0.3512485,2619.4,2619.3,25.79718248]
[1748966801514,0.3512485,2619.4,2619.3,1.2302]
[1748966801793,0.3512485,2619.4,2619.3,3.81781391]
[1748966803399,0.3512485,2619.4,2619.3,21.59665191]
[1748966804582,0.3512485,2619.4,2619.3,21.91535637]
[1748966805544,0.3512485,2619.4,2619.3,23.63535637]
[1748966805747,0.3512485,2619.4,2619.3,26.3806874]
[1748966806648,0.3512485,2619.4,2619.3,7.19301837]
[1748966807669,0.3512485,2619.4,2619.3,15.19301837]
[1748966810409,0.3512485,2619.4,2619.3,0.31870446]
[1748966811274,0.3512485,2619.4,2619.3,4.13651837]
[1748966811898,0.3512485,2619.4,2619.3,0.31870446]
[1748966812573,1.6539485,2619.4,2619.3,0.31870446]
[1748966813048,1.6539485,2619.4,2619.3,4.13651837]
[1748966813254,0.3512485,2619.4,2619.3,0.31870446]
[1748966814070,1.5470485,2619.4,2619.3,0.31870446]
[1748966815366,1.2254,2619.3,2618.1,1.2391]
[1748966815585,6.503,2619.2,2618.3,3.81924054]
[1748966815786,1.12410294,2619.1,2618.3,3.81924054]
[1748966816002,1.2254,2619.0,2618.0,3.81961716]
[1748966816203,1.57666231,2619.0,2618.2,8.492338]
[1748966816365,2.46191254,2619.0,2618.7,3.81861942]
[1748966817200,2.46191254,2619.0,2618.0,0.38982151]
[1748966817397,1.57666231,2619.0,2618.2,3.8193439]
[1748966817802,1.57666231,2619.0,2618.3,3.81924839]
[1748966818669,1.57666231,2619.0,2618.5,3.81889418]
[1748966818872,1.57666231,2619.0,2618.4,3.8190455]
[1748966819307,0.35123089,2618.9,2618.4,3.8190455]
[1748966819480,0.84298932,2618.9,2618.3,3.81924839]
[1748966819683,0.84298932,2618.9,2618.5,3.81896004]
[1748966820005,0.84298932,2618.9,2618.6,3.81876022]
[1748966820623,0.35126231,2619.0,2618.9,3.81839703]
[1748966821135,0.35126231,2619.0,2618.9,6.67350677]
[1748966821289,0.35126231,2619.0,2618.9,14.67350677]
[1748966821677,0.35126231,2619.0,2618.9,11.81839703]
[1748966822331,0.35126231,2619.0,2618.9,21.50763503]
[1748966822818,0.35126231,2619.0,2618.9,24.21725044]
[1748966823740,0.35126231,2619.0,2618.9,24.76725044]
[1748966823952,0.35126231,2619.0,2618.9,25.08600358]
[1748966824095,0.3512485,2619.4,2619.3,5.56471391]
[1748966824302,0.3512485,2619.4,2619.3,24.76533385]
[1748966824650,0.3512485,2619.4,2619.3,25.08403831]
[1748966825165,0.3512485,2619.4,2619.3,24.53403831]
[1748966825945,0.3512485,2619.4,2619.3,25.08403831]
[1748966826439,0.3212775,2619.4,2619.3,25.08403831]
[1748966828696,0.3511641,2619.7,2619.3,25.08403831]
[1748966828697,0.3511641,2619.7,2619.6,10.0]
[1748966828898,1.2236,2621.0,2620.1,3.81664821]
[1748966829101,1.2773,2621.3,2620.1,28.26202021]
[1748966829322,0.21061241,2621.5,2620.8,21.49646681]
[1748966829641,0.21061241,2621.5,2620.8,24.02025693]
[1748966830430,0.21061241,2621.5,2620.8,24.57025693]
[1748966830625,0.21061241,2621.5,2620.8,16.63096619]
[1748966830879,0.21061241,2621.5,2621.4,3.81475547]
[1748966831082,0.21061241,2621.5,2621.4,11.81475547]
[1748966831366,0.21061241,2621.5,2621.4,17.2480528]
[1748966831566,0.21061241,2621.5,2621.4,11.81475547]
[1748966835070,0.21061241,2621.5,2621.4,3.81475547]
[1748966836171,0.21061241,2621.5,2620.8,4.20389434]
[1748966836336,0.21061241,2621.5,2620.9,3.81545812]
[1748966836668,0.21061241,2621.5,2621.3,3.81480649]
[1748966836877,0.21061241,2621.5,2621.4,3.81475547]
[1748966837034,0.21061241,2621.5,2620.9,3.81548323]
[1748966837231,1.1813,2621.4,2619.9,9.4868]
[1748966837441,1.1813,2621.2,2620.4,3.81612493]
[1748966837765,1.1813,2621.2,2620.5,0.31855852]
[1748966837959,0.55,2621.3,2620.5,0.31855852]
[1748966838161,1.1813,2620.8,2620.5,0.31855852]
[1748966838462,1.1813,2620.8,2619.1,0.02]
[1748966838463,1.29,2620.1,2619.1,0.02]
[1748966838784,8.0,2620.6,2619.3,3.81773303]
[1748966838785,1.29,2619.9,2619.3,3.81773303]
[1748966838955,1.29,2619.9,2619.4,3.81759445]
[1748966839157,1.29,2619.9,2619.1,0.02]
[1748966839158,6.512,2619.8,2619.1,0.02]
[1748966839365,1.2568,2619.6,2619.1,3.8381015]
[1748966839688,1.2568,2619.6,2619.2,3.81795968]
[1748966840492,1.2568,2619.6,2619.1,3.83804304]
[1748966840788,1.2568,2619.6,2619.1,0.02]
[1748966840988,0.2037,2619.5,2619.1,3.83807733]
[1748966841176,0.2037,2619.5,2619.1,0.02]
[1748966841713,1.2568,2619.6,2619.5,3.81752242]
[1748966841852,1.2568,2619.6,2619.3,3.81774083]
[1748966842042,1.2568,2619.6,2619.1,0.02]
[1748966842245,1.2568,2619.6,2619.5,3.81752242]
[1748966842446,1.57535669,2619.6,2619.5,3.81752242]
[1748966843257,0.31855669,2619.6,2619.5,3.81752242]
[1748966843464,0.31855669,2619.6,2619.5,4.58104005]
[1748966844955,1.2609,2619.9,2619.8,3.81708527]
[1748966845596,1.244,2620.8,2620.3,3.81634459]
[1748966845889,1.244,2620.8,2619.5,3.81748819]
[1748966845890,8.27,2620.7,2620.2,3.81648892]
[1748966846092,1.766,2620.7,2620.5,3.81604058]
[1748966846307,1.244,2620.8,2619.7,8.492338]
[1748966846453,1.244,2620.8,2620.5,3.81596645]
[1748966846655,1.244,2620.8,2620.6,3.81584563]
[1748966846964,1.244,2620.8,2620.0,9.718838]
[1748966847292,1.244,2620.8,2620.4,3.81619962]
[1748966847491,1.244,2620.8,2620.5,3.81602182]
[1748966847807,1.244,2620.8,2620.4,3.81614386]
[1748966847968,1.244,2620.8,2620.3,3.81635032]
[1748966848165,1.244,2620.8,2620.4,3.81611951]
[1748966848368,1.244,2620.8,2620.0,3.81677803]
[1748966848697,1.244,2620.8,2620.4,3.8161407]
[1748966849188,1.244,2620.8,2620.5,3.81603902]
[1748966849391,1.244,2620.8,2620.0,12.30911149]
[1748966849556,1.244,2620.8,2620.7,3.81577441]
[1748966851670,1.244,2620.8,2620.1,11.81651219]
[1748966851873,1.244,2620.8,2620.5,3.8159936]
[1748966852173,1.244,2620.8,2620.6,3.81583412]
[1748966852499,1.244,2620.8,2620.7,3.81577441]
[1748966852988,1.244,2620.8,2620.6,3.81581325]
[1748966853174,1.244,2620.8,2620.5,3.81600934]
[1748966853377,1.244,2620.8,2620.6,3.81589714]
[1748966853782,1.244,2620.8,2620.7,3.81577441]
[1748966854398,1.244,2620.8,2620.6,3.81584497]
[1748966854889,1.244,2620.8,2620.7,3.81577441]
[1748966855113,1.244,2620.8,2620.1,3.81663492]
[1748966855114,0.7724,2620.8,2620.1,3.81663492]
[1748966855315,0.7724,2620.8,2620.0,3.81671157]
[1748966855316,1.2501,2620.7,2620.0,3.81671157]
[1748966855621,1.2501,2620.7,2620.2,3.81639812]
[1748966855917,0.35097869,2620.6,2620.2,3.81639812]
[1748966856078,1.03734787,2620.6,2620.2,3.81639812]
[1748966856279,1.03734787,2620.6,2620.1,3.81659648]
[1748966856504,1.03734787,2620.6,2620.0,3.81671968]
[1748966856879,1.03734787,2620.6,2620.1,3.8165036]
[1748966857097,1.03734787,2620.6,2619.5,8.0]
[1748966857415,6.476,2620.5,2620.4,3.81621126]
[1748966857615,6.476,2620.5,2619.7,1.2185]
[1748966857616,6.476,2620.5,2620.2,3.8164272]
[1748966857826,1.2797,2620.4,2619.5,3.81745294]
[1748966858030,6.476,2620.5,2619.1,3.83809965]
[1748966858031,1.3113,2620.2,2619.3,3.81772605]
[1748966858177,0.35086299,2620.1,2619.3,3.81772605]
[1748966858378,1.3113,2620.2,2619.4,3.81766075]
[1748966858695,3.09157,2620.3,2619.2,3.81795968]
[1748966858696,1.3113,2620.0,2619.2,3.81795968]
[1748966858910,6.477,2619.9,2619.7,3.8172209]
[1748966859292,6.477,2619.9,2619.6,3.81729607]
[1748966859895,6.474,2619.9,2619.8,3.81700758]
[1748966860281,6.475,2620.2,2619.9,3.81693957]
[1748966860479,6.475,2620.2,2620.0,3.81672067]
[1748966861133,1.3113,2620.6,2620.0,3.81672067]
[1748966861337,6.78073,2620.5,2619.9,3.81687222]
[1748966861622,6.78073,2620.5,2619.8,3.8170128]
[1748966861779,6.78073,2620.5,2619.7,3.81714749]
[1748966861980,1.3113,2620.4,2619.7,3.81714749]
[1748966862216,1.3113,2620.4,2619.1,9.2347]
[1748966862424,1.3113,2620.2,2619.4,3.81752487]
[1748966862593,9.3113,2620.0,2619.1,0.02]
[1748966862925,1.3113,2619.9,2619.2,3.81794521]
[1748966863121,7.40813,2619.8,2619.2,3.81794521]
[1748966864191,7.40813,2619.8,2619.1,0.02]
[1748966864192,1.3115,2619.7,2619.1,0.02]
[1748966864406,1.3115,2619.7,2619.1,3.83800033]
[1748966865009,1.3115,2619.7,2619.2,3.81793567]
[1748966865198,2.183463,2619.7,2619.2,3.81793567]
[1748966865927,0.809203,2620.3,2619.6,3.81723889]
[1748966866133,1.767,2620.4,2619.3,1.1935]
[1748966866134,1.3073,2620.2,2619.3,1.1935]
[1748966866289,7.7783,2620.2,2619.8,3.81696815]
[1748966866483,1.3073,2620.2,2619.8,3.81696815]
[1748966866798,1.3073,2620.2,2619.3,1.1935]
[1748966867119,7.7773,2620.2,2620.0,3.81672541]
[1748966867486,7.7773,2620.2,2620.1,3.81664821]
[1748966867712,1.3073,2620.2,2620.1,3.81664821]
[1748966868224,1.3073,2620.2,2620.0,3.81668775]
[1748966868789,1.3073,2620.2,2620.1,3.81664821]
[1748966869685,1.756,2620.9,2620.1,0.76334848]
[1748966869887,0.31842303,2620.8,2620.0,3.81668049]
[1748966870186,0.31842303,2620.8,2619.8,3.81704281]
[1748966870187,1.2924,2620.7,2619.8,3.81704281]
[1748966870400,8.86842303,2620.8,2619.8,3.81704281]
[1748966870593,1.2924,2620.5,2619.9,3.81692369]
[1748966870847,0.35056549,2620.4,2619.9,3.81692369]
[1748966871022,0.35056549,2620.3,2619.8,3.81700727]
[1748966871312,0.35056549,2620.3,2619.7,3.81719908]
[1748966871313,0.35056549,2620.2,2619.9,3.81689006]
[1748966871538,1.61082303,2620.5,2619.9,3.81689006]
[1748966871835,1.27950533,2620.4,2619.9,3.81689006]
[1748966872896,1.27950533,2620.4,2619.7,3.81723098]
[1748966873098,1.27950533,2620.4,2620.0,3.81669719]
[1748966873335,1.27950533,2620.4,2620.1,3.81662404]
[1748966873658,1.27950533,2620.4,2620.0,3.81673062]
[1748966873857,0.25719053,2620.3,2620.0,3.81673062]
[1748966874941,0.25719053,2620.3,2619.6,3.81737669]
[1748966875141,0.31842303,2620.4,2620.2,3.81647276]
[1748966875355,0.31842303,2620.4,2620.2,3.81643513]
[1748966875558,1.12520533,2620.4,2620.0,3.81678393]
[1748966875851,1.12520533,2620.4,2619.5,6.83273934]
[1748966876052,1.12520533,2620.4,2620.0,3.81672713]
[1748966876215,1.12520533,2620.4,2619.5,6.0359329]
[1748966876418,1.12520533,2620.4,2620.0,3.81668166]
[1748966877154,1.12520533,2620.4,2619.7,3.81712739]
[1748966877333,0.88746053,2620.3,2619.5,1.15344562]
[1748966877529,0.88746053,2620.3,2619.9,3.81687834]
[1748966877864,0.88746053,2620.3,2619.9,3.81692219]
[1748966878557,0.88746053,2620.3,2619.9,3.81685989]
[1748966879963,0.88746053,2620.3,2619.7,3.81719469]
[1748966880261,0.88746053,2620.3,2619.9,3.816924]
[1748966881436,0.88746053,2620.3,2619.9,3.81686776]
[1748966881774,0.88746053,2620.3,2619.8,3.8170527]
[1748966882276,0.88746053,2620.3,2619.9,3.81693925]
[1748966882578,1.2069,2620.2,2619.4,3.81757808]
[1748966882884,1.2069,2620.0,2619.1,1.3234]
[1748966883192,1.2069,2619.8,2619.1,0.02]
[1748966883845,0.35021097,2619.7,2619.1,3.83810439]
[1748966884050,1.1929,2619.7,2619.2,3.81794315]
[1748966884254,6.438,2619.6,2619.2,8.1752352]
[1748966884447,1.51132303,2619.7,2619.6,3.81737669]
[1748966884654,0.31842303,2619.7,2619.6,3.81737669]
[1748966886356,0.31842303,2619.7,2619.5,3.81742742]
[1748966886851,0.31842303,2619.7,2619.3,8.0]
[1748966887089,0.31842303,2619.7,2619.4,8.0]
[1748966887293,0.31842303,2619.7,2619.5,3.81749147]
[1748966887596,7.7232,2620.0,2619.5,3.81749147]
[1748966887895,0.77232,2619.9,2619.5,3.81749147]
[1748966888193,0.77232,2619.9,2619.6,3.81736834]
[1748966890493,0.77232,2619.9,2619.1,0.02]
[1748966890682,1.2242,2619.8,2619.1,3.83809134]
[1748966890881,1.2114,2619.6,2619.1,0.02]
[1748966891083,1.2114,2619.6,2619.1,3.83810347]
[1748966891287,1.2114,2619.6,2619.2,3.8179317]
[1748966891470,1.2114,2619.6,2619.3,3.81772942]
[1748966892097,1.2114,2619.6,2619.2,3.81788971]
[1748966892506,1.2114,2619.6,2619.1,0.02]
[1748966892656,1.52982303,2619.6,2619.1,0.02]
[1748966893076,0.31842303,2619.5,2619.1,0.02]
[1748966893278,6.428,2619.4,2619.1,0.02]
[1748966893619,7.2237823,2619.4,2619.1,3.8380889]
[1748966893917,7.2237823,2619.4,2619.1,0.02]
[1748966895018,7.54220533,2619.4,2619.1,3.83798933]
[1748966896002,7.54220533,2619.4,2619.1,0.02]
[1748966896217,1.2556,2619.3,2619.1,0.02]
[1748966896388,3.89238053,2619.2,2619.1,0.02]
[1748966897021,4.21080356,2619.2,2619.1,0.02]
[1748966898472,1.187,2619.0,2618.3,2.90552769]
[1748966898680,1.187,2619.0,2618.1,3.83952832]
[1748966898681,0.31842303,2618.9,2618.2,3.81935972]
[1748966898982,7.607,2618.8,2618.1,3.8395038]
[1748966899204,7.607,2618.8,2618.2,3.81940816]
[1748966899519,0.31842303,2618.7,2618.1,3.83956182]
[1748966899816,1.20283533,2618.7,2618.2,3.81941301]
[1748966900274,1.20283533,2618.7,2618.1,3.83953191]
[1748966900275,1.20283533,2618.7,2618.3,3.81925308]
[1748966901403,1.20283533,2618.7,2618.3,3.81915569]
[1748966901576,0.31842303,2618.7,2618.1,0.02]
[1748966901778,0.31842303,2618.7,2618.6,3.81883449]
[1748966902518,8.242,2620.3,2619.3,3.81773364]
[1748966902519,1.273,2619.5,2619.3,3.81773364]
[1748966902678,1.273,2619.5,2619.2,3.81788501]
[1748966903013,7.692,2619.5,2618.8,2.02312553]
[1748966903215,7.692,2619.5,2619.1,3.81803503]
[1748966903419,7.692,2619.5,2619.2,3.8179519]
[1748966903587,7.692,2619.5,2618.9,3.81829128]
[1748966903787,7.692,2619.5,2619.1,3.81809867]
[1748966905486,7.692,2619.5,2619.0,3.81822898]
[1748966905812,7.692,2619.5,2618.9,3.81832562]
[1748966906118,7.692,2619.5,2619.0,3.81823224]
[1748966906320,8.65483184,2619.5,2618.8,3.81854284]
[1748966906525,8.65483184,2619.5,2618.9,3.81839703]
[1748966906889,8.65483184,2619.5,2618.7,8.0]
[1748966907123,1.05911503,2619.4,2618.8,3.81847671]
[1748966907421,1.05911503,2619.4,2618.7,8.0]
[1748966907422,1.3308,2619.3,2618.5,2.85510974]
[1748966907621,1.05911503,2619.4,2618.2,3.81927387]
[1748966907622,1.3308,2619.1,2618.2,3.81927387]
[1748966907876,1.3308,2618.9,2618.1,3.83953584]
[1748966908030,6.419,2618.8,2618.1,3.83953584]
[1748966908242,6.419,2618.8,2618.1,0.02]
[1748966908243,1.2325,2618.7,2618.1,0.02]
[1748966908397,8.1752352,2618.2,2618.1,0.02]
[1748966908605,26.45838856,2618.2,2618.1,0.02]
[1748966908936,28.77461374,2618.2,2618.1,0.02]
[1748966909290,29.10910881,2618.2,2618.1,0.02]
[1748966909728,0.55,2618.1,2617.1,0.02]
[1748966909934,1.289,2618.0,2617.1,0.02]
[1748966910408,1.3394,2617.8,2617.1,0.02]
[1748966910723,0.35064675,2617.7,2617.1,3.84100196]
[1748966910884,1.727,2617.6,2617.1,3.84100196]
[1748966911084,1.2955,2617.5,2617.1,0.02]
[1748966911314,0.30225,2617.4,2617.1,0.02]
[1748966912494,0.30225,2617.4,2617.1,3.84097341]
[1748966912725,6.426,2617.3,2617.1,3.84096392]
[1748966913402,6.426,2617.3,2617.1,0.02]
[1748966913593,6.426,2617.3,2617.1,3.84101418]
[1748966913923,6.426,2617.3,2617.1,0.02]
[1748966914334,6.424,2617.3,2617.1,0.02]
[1748966914802,6.424,2617.3,2617.1,3.84102284]
[1748966915130,6.424,2617.3,2617.1,0.02]
[1748966915543,7.36865,2617.3,2617.1,0.02]
[1748966918262,6.424,2617.3,2617.1,0.02]
[1748966918552,6.424,2617.3,2617.1,3.84088192]
[1748966920546,1.2175,2617.8,2617.4,3.82052556]
[1748966920842,7.6405,2617.8,2617.4,3.82047878]
[1748966921316,7.6405,2617.8,2617.3,3.82065107]
[1748966921640,7.6405,2617.8,2617.2,3.8208643]
[1748966921641,7.6405,2617.8,2617.2,8.0]
[1748966921843,7.6405,2617.8,2617.1,0.02]
[1748966922044,1.2542,2617.6,2617.1,0.02]
[1748966922616,0.55,2617.3,2617.1,0.02]
[1748966922821,7.6509,2617.2,2617.1,0.02]
[1748966923818,8.2009,2617.2,2617.1,0.02]
[1748966924756,1.7779,2617.2,2617.1,0.02]
[1748966924957,9.9289,2617.2,2617.1,0.02]
[1748966925148,10.92179,2617.2,2617.1,0.02]
[1748966926851,3.94879,2617.2,2617.1,0.02]
[1748966927051,9.3789,2617.2,2617.1,0.02]
[1748966927853,7.6509,2617.2,2617.1,0.02]
[1748966928057,1.2279,2617.2,2617.1,0.02]
[1748966928252,6.424,2617.2,2617.1,0.02]
[1748966929155,1.728,2617.3,2617.1,3.84096132]
[1748966929454,1.728,2617.3,2617.1,3.84095261]
[1748966930728,1.728,2617.3,2617.1,0.02]
[1748966931131,0.8152,2617.3,2617.1,0.02]
[1748966931332,1.3253,2617.2,2617.1,0.02]
[1748966933223,0.44341551,2618.6,2617.1,0.02]
[1748966933224,1.3029,2617.6,2617.1,3.84093475]
[1748966933533,6.423,2617.5,2617.1,0.02]
[1748966933858,0.94529,2617.4,2617.1,0.02]
[1748966934884,6.423,2617.3,2617.1,0.02]
[1748966935557,3.0299,2617.6,2616.7,8.19458997]
[1748966935558,1.3029,2617.6,2616.7,8.19458997]
[1748966935760,7.7259,2617.6,2616.8,3.82146132]
[1748966936082,7.7259,2617.6,2616.6,8.19458997]
[1748966936294,9.35349,2617.6,2616.9,3.82126816]
[1748966936486,2.93049,2617.6,2616.9,3.82125655]
[1748966936784,2.93049,2617.6,2617.1,3.82102208]
[1748966936990,2.93049,2617.6,2617.0,3.82116927]
[1748966936991,6.423,2617.5,2617.0,3.82116927]
[1748966937177,1.727,2618.0,2617.2,3.82073272]
[1748966937352,1.727,2618.0,2617.0,3.82108651]
[1748966937353,8.0,2617.8,2617.0,3.82108651]
[1748966937554,1.3614,2617.7,2617.0,3.82105891]
[1748966937855,0.97188428,2617.6,2617.0,3.82105891]
[1748966938080,0.97188428,2617.6,2617.1,3.82102199]
[1748966938384,0.97188428,2617.6,2617.1,3.82098644]
[1748966938574,0.97188428,2617.6,2617.0,5.10755657]
[1748966938772,0.97188428,2617.6,2617.0,1.2865]
[1748966938975,0.23332843,2617.5,2617.0,1.2865]
[1748966940192,0.23332843,2617.5,2616.7,1.3535]
[1748966940487,0.23332843,2617.5,2616.9,3.82120932]
[1748966940849,0.23332843,2617.5,2617.0,3.82115698]
[1748966941097,0.23332843,2617.5,2616.7,1.3535]
[1748966941098,6.423,2617.5,2617.1,3.82093267]
[1748966941313,1.3614,2617.7,2617.2,3.82080612]
[1748966941457,6.423,2617.5,2617.2,3.82080612]
[1748966941819,6.423,2617.5,2617.1,3.82094801]
[1748966941994,6.423,2617.5,2617.2,3.82083244]
[1748966942162,6.423,2617.5,2617.2,5.14739368]
[1748966942367,6.423,2617.6,2617.3,3.82070206]
[1748966942906,6.423,2617.6,2617.2,5.1474092]
[1748966943665,6.423,2617.6,2617.3,3.82067721]
[1748966943862,0.55,2617.5,2616.8,1.2592]
[1748966944090,0.55,2617.3,2616.6,3.82169399]
[1748966944465,0.55,2617.3,2616.4,9.45378997]
[1748966944666,6.423,2617.2,2616.4,14.22117383]
[1748966944982,2.50544,2617.6,2616.4,14.22117383]
[1748966944983,2.05824,2617.6,2617.2,3.82073854]
[1748966945181,6.423,2617.5,2617.2,3.82079003]
[1748966945393,7.7028,2617.6,2617.4,3.82051971]
[1748966945678,1.2798,2617.9,2617.6,3.82021948]
[1748966945992,6.423,2618.1,2617.5,3.82042465]
[1748966946195,1.2646,2618.2,2617.6,3.82020432]
[1748966946366,6.423,2618.0,2617.5,3.82043649]
[1748966946566,6.423,2618.0,2617.3,8.19458997]
[1748966946762,1.2728,2617.8,2617.2,5.13889033]
[1748966946979,1.2728,2617.8,2617.1,3.82092302]
[1748966947175,1.2728,2617.8,2617.2,3.82084871]
[1748966947506,1.2728,2617.8,2617.1,8.19458997]
[1748966947804,6.423,2617.7,2617.6,3.82028498]
[1748966948008,2.9998,2618.1,2617.5,1.3137]
[1748966948212,2.03332265,2618.4,2618.1,3.81953907]
[1748966948414,1.57649164,2618.9,2618.4,3.81900841]
[1748966948597,1.57649164,2618.9,2618.3,8.19458997]
[1748966948770,1.57649164,2618.9,2618.5,3.81887619]
[1748966949170,0.23039164,2618.9,2618.4,3.81912618]
[1748966949409,0.23039164,2618.9,2618.7,3.81868866]
[1748966950111,0.23039164,2618.9,2618.8,3.81854284]
[1748966950306,0.23039164,2618.9,2618.6,8.19458997]
[1748966950558,0.23039164,2618.9,2618.6,12.01340091]
[1748966950724,0.23039164,2618.9,2618.6,8.19458997]
[1748966950922,0.23039164,2618.9,2618.6,3.81882892]
[1748966951125,0.23039164,2618.9,2618.3,8.19458997]
[1748966951443,0.23039164,2618.9,2618.3,13.51928666]
[1748966951647,0.23039164,2618.9,2618.7,3.81867016]
[1748966951847,6.427,2619.2,2618.9,1.76960836]
[1748966953357,6.422,2619.1,2618.9,1.76960836]
[1748966954123,1.1001,2619.3,2618.9,1.76960836]
[1748966954363,6.422,2619.3,2618.9,1.76960836]
[1748966954551,1.274,2619.4,2618.9,5.58793644]
[1748966954863,6.422,2619.4,2618.9,5.58795449]
[1748966955014,3.22681841,2619.6,2618.9,1.76960836]